Cogmind - Beta 13 @@@ ROGUE MODE // 2024.05.05 @ 06:01:41 Player: Carpathian Result: Self-destructed Performance ------------- Evolutions (1) 500 Regions Visited (4) 800 Robots Destroyed (12) 60 Value Destroyed (192) 192 Prototype IDs (0) 0 Alien Tech Used (0) 0 Bonus (200) 200 TOTAL SCORE: 1752 Bonus ------- Pacifist 200 Cogmind --------- Core Integrity 363/400 Matter 222/300 Energy 125/125 System Corruption 0% Temperature Cool (0) Movement Walking (190) Ox1 Location -9/Mines Parts ------- > --- POWER (1) -------- Light Ion Engine > --- PROPULSION (2) --- Aluminum Leg Aluminum Leg > --- UTILITY (4) ------ Large Storage Unit Machine Analyzer Targeting Computer Hardened Medium Armor Plating > --- WEAPON (2) ------- Shotgun Mini Grenade Launcher > --- INVENTORY (15) --- Light Ion Engine Cooled Ion Engine Light Treads Light Treads Heat Sink Weapon Shielding Reflective Plating Field Laser Assault Rifle Light Assault Rifle Shotgun Mining Laser Peak State ------------ > --- POWER ------------ Light Ion Engine > --- PROPULSION ------- Aluminum Leg Aluminum Leg > --- UTILITY ---------- Large Storage Unit Machine Analyzer Targeting Computer Hardened Medium Armor Plating > --- WEAPON ----------- Shotgun Shotgun > --- INVENTORY -------- Light Ion Engine Light Treads Light Treads Weapon Shielding Reflective Plating Field Laser Assault Rifle Light Assault Rifle Mining Laser [Rating: 16] Favorites ----------- Power Light Ion Engine Engine Light Ion Engine Propulsion Aluminum Leg Leg Aluminum Leg Utility Large Storage Unit Storage Large Storage Unit Processor Targeting Computer Protection Hardened Medium Armor Plating Weapon Shotgun Ballistic Gun Shotgun Launcher Mini Grenade Launcher Build | -11 -10 -10 -9 -9 ------- Run | Yrd Mat Min Mat Min Slots Evolved 2 | . . . 2 . Power . | . . . . . Propulsion . | . . . . . Utility 2 | . . . 2 . Weapon . | . . . . . Parts Attached 16 | 6 3 2 2 3 Power 1 | 1 . . . . Engine 1 | 1 . . . . Core . | . . . . . Reactor . | . . . . . Propulsion 2 | 2 . . . . Treads . | . . . . . Leg 2 | 2 . . . . Wheel . | . . . . . Hover . | . . . . . Flight . | . . . . . Utility 5 | 1 2 . 2 . Device . | . . . . . Storage 2 | 1 1 . . . Processor 2 | . 1 . 1 . Hackware . | . . . . . Protection 1 | . . . 1 . Artifact . | . . . . . Weapon 8 | 2 1 2 . 3 Energy Gun . | . . . . . Energy Cannon . | . . . . . Ballistic Gun 6 | 2 1 2 . 1 Ballistic Cannon . | . . . . . Launcher 2 | . . . . 2 Special Weapon . | . . . . . Impact Weapon . | . . . . . Slashing Weapon . | . . . . . Piercing Weapon . | . . . . . Special Melee Weapon . | . . . . . Unidentified Prototypes . | . . . . . Parts Lost . | . . . . . Power . | . . . . . Propulsion . | . . . . . Utility . | . . . . . Weapon . | . . . . . Highest Loss Streak . | . . . . . To Critical Strikes . | . . . . . Average Slot Usage (%) 99 | . 98 100 100 100 Engine 11 | . 14 14 11 11 Leg 23 | . 28 28 22 22 Storage 11 | . 14 14 11 11 Processor 19 | . 12 14 22 22 Protection 7 | . . . 11 11 Ballistic Gun 20 | . 28 28 22 14 Launcher 3 | . . . . 7 Naked Turns . | . . . . . Heaviest Build 37 | 10 26 29 37 37 Greatest Support 20 | 20 20 20 20 20 Greatest Overweight (x) 1 | . 1 1 1 1 Average Overweight (x) . | . . 1 1 1 Largest Inventory Capacity 15 | 8 15 15 15 15 Average Capacity 14 | 7 14 15 15 15 Most Carried 12 | 3 7 11 12 12 Average Carried 9 | 1 3 10 10 12 Final Capacity 15 | 8 15 15 15 15 Final Carried 12 | 3 7 11 12 12 Class Distribution -------------------- 100% | Mutant Dominant Class ---------------- Mutant | -10/Materials Mutant | -10/Mines Mutant | -9/Materials Mutant | -9/Mines Resources | -11 -10 -10 -9 -9 ----------- Run | Yrd Mat Min Mat Min Matter Collected 522 | 193 . 125 140 64 Remotely . | . . . . . Salvage Created 409 | . . 17 315 77 Parts 27 | . . . 22 5 Haulers Intercepted 1 | . . . 1 . Recyclers Shooed 1 | . . . 1 . Parts Field Recycled . | . . . . . Retrieved Matter . | . . . . . Parts Self-Destructed . | . . . . . Prevented . | . . . . . Kills | -11 -10 -10 -9 -9 ------- Run | Yrd Mat Min Mat Min Combat Hostiles Destroyed 8 | . . 1 2 5 Guns 4 | . . 1 2 1 AOE 4 | . . . . 4 Classes Destroyed 7 | . . 1 5 1 Worker 2 | . . . 2 . Hauler 1 | . . . 1 . Recycler 2 | . . . 2 . Swarmer 4 | . . . . 4 Grunt 2 | . . . 1 1 Sentry 1 | . . . 1 . Assembled 1 | . . 1 . . Best Kill Streak 4 | . . 1 4 4 Combat Bots Only 4 | . . 1 1 4 Max Kills in Single Turn 4 | . . 1 1 4 Gunslinging . | . . . . . Exploded 4 | . . . . 4 Melee . | . . . . . Uniques/NPCs Destroyed . | . . . . . Combat | -11 -10 -10 -9 -9 -------- Run | Yrd Mat Min Mat Min Hostile Shots Fired 22 | . . . 7 15 Missed 4 | . . . 1 3 Damage Taken 222 | . . . 70 152 Core 37 | . . . 23 14 Absorbed by Shields . | . . . . . Core Remaining (%) 100 | 100 . 100 . . Volleys Fired 27 | . . 1 15 11 Largest 2 | . . 2 2 2 Hottest 53 | . . 46 46 53 Shots Fired 54 | . . 2 30 22 Gun 50 | . . 2 30 18 Cannon . | . . . . . Launcher 4 | . . . . 4 Special . | . . . . . Kinetic 50 | . . 2 30 18 Thermal . | . . . . . Explosive 4 | . . . . 4 Electromagnetic . | . . . . . Robot Hit Streak 7 | . . 2 7 4 Robot Miss Streak 7 | . . . 3 7 Penetration Max . | . . . . . Secondary Targets . | . . . . . Shots Hit Robots 37 | . . 1 25 11 Core Hits 20 | . . 2 12 6 Critical Kills 1 | . . . 1 . Critical Parts Destroyed 1 | . . . . 1 Critical Strikes 2 | . . . 1 1 Destroy 2 | . . . 1 1 Melee Attacks . | . . . . . Impact . | . . . . . Slashing . | . . . . . Piercing . | . . . . . Sneak Attacks . | . . . . . Combat Hostiles . | . . . . . Follow-up Attacks . | . . . . . Damage Inflicted 737 | . . 22 366 349 Guns 535 | . . 22 366 147 Cannons . | . . . . . Explosions 202 | . . . . 202 Melee . | . . . . . Ramming . | . . . . . Kinetic 535 | . . 22 366 147 Thermal . | . . . . . Explosive 202 | . . . . 202 Electromagnetic . | . . . . . Impact . | . . . . . Slashing . | . . . . . Piercing . | . . . . . Highest Corruption . | . . . . . Average Corruption . | . . . . . Corruption Purged . | . . . . . Corruption Blocked . | . . . . . Overload Shots . | . . . . . Overflow Damage 11 | . . . . 11 Projectiles . | . . . . . Explosions 11 | . . . . 11 Melee . | . . . . . Knockbacks . | . . . . . Impact . | . . . . . Kinetic . | . . . . . Secondary . | . . . . . Self-Inflicted Damage . | . . . . . Shots . | . . . . . Rammed . | . . . . . Targets Rammed . | . . . . . Kicked . | . . . . . Crushed . | . . . . . Highest Temperature 30 | . . . 3 30 Average Temperature 17 | . . . 3 20 Received Heat Transfer 135 | . . . 33 102 Siege Activations . | . . . . . Robots Corrupted . | . . . . . Combat Hostiles . | . . . . . Parts Fried . | . . . . . Impact Corruptions . | . . . . . Robots Melted . | . . . . . Combat Hostiles . | . . . . . Parts Melted . | . . . . . Heat Transferred . | . . . . . Parts Sabotaged . | . . . . . Parts Stolen . | . . . . . Parts Stripped . | . . . . . Power Chain Reactions . | . . . . . Alert | -11 -10 -10 -9 -9 ------- Run | Yrd Mat Min Mat Min Peak Influence 127 | . 30 10 100 127 Initial 22 | . . . . 22 Average 32 | . 14 4 42 44 Maximum Alert Level . | . . . . . Low Security (%) 100 | 100 100 100 100 100 Level 1 . | . . . . . Level 2 . | . . . . . Level 3 . | . . . . . Level 4 . | . . . . . Level 5 . | . . . . . High Security . | . . . . . Max Security . | . . . . . Squads Dispatched 3 | . . 1 2 . Investigation 2 | . . 1 1 . Extermination . | . . . . . Reinforcement 1 | . . . 1 . Assault . | . . . . . Garrison . | . . . . . Intercept . | . . . . . Searches Triggered . | . . . . . Construction Impeded . | . . . . . Haulers Reinforced . | . . . . . Active Scanning Responses . | . . . . . Cargo Convoy Interrupts . | . . . . . Stealth | -11 -10 -10 -9 -9 --------- Run | Yrd Mat Min Mat Min Distress Signals 1 | . . . 1 . Communications Jammed . | . . . . . Distress Signals . | . . . . . Times Spotted 20 | . 2 4 7 7 Peak Tracking Total 4 | . 1 3 2 4 Tactical Retreats 3 | . . . 1 2 Traps | -11 -10 -10 -9 -9 ------- Run | Yrd Mat Min Mat Min Traps Triggered 1 | . . . 1 . Indirectly . | . . . . . Trap Hack Attempts . | . . . . . Triggered . | . . . . . Disarmed . | . . . . . Reprogrammed . | . . . . . Reused . | . . . . . Traps Extracted . | . . . . . Installed . | . . . . . Triggered 1 | . . 1 . . Machines | -11 -10 -10 -9 -9 ---------- Run | Yrd Mat Min Mat Min Machines Disabled 1 | . . . . 1 Max in Single Turn 1 | . . . . 1 Machines Repaired . | . . . . . Machines Dismantled . | . . . . . Machines Sabotaged . | . . . . . Overloaded Fab Kills . | . . . . . Hacking | -11 -10 -10 -9 -9 --------- Run | Yrd Mat Min Mat Min Machines Accessed 3 | . . 1 2 . Terminals 2 | . . . 2 . Fabricators . | . . . . . Repair Stations . | . . . . . Recycling Units . | . . . . . Scanalyzers . | . . . . . Garrison Access . | . . . . . Total Hacks 5 | . . 1 4 . Successful 5 | . . 1 4 . Failed . | . . . . . Catastrophic . | . . . . . Database Lockouts . | . . . . . Manual . | . . . . . Terminals 4 | . . . 4 . Fabricators . | . . . . . Repair Stations . | . . . . . Recycling Units . | . . . . . Scanalyzers . | . . . . . Garrison Access . | . . . . . Terminal Hacks 5 | . . 1 4 . Record 4 | . . . 4 . Open Door 1 | . . 1 . . Fabricator Hacks . | . . . . . Repair Station Hacks . | . . . . . Recycling Unit Hacks . | . . . . . Scanalyzer . | . . . . . Garrison Access Hacks . | . . . . . Unauthorized Hacks . | . . . . . Terminals . | . . . . . Fabricators . | . . . . . Repair Stations . | . . . . . Recycling Units . | . . . . . Scanalyzers . | . . . . . Garrison Access . | . . . . . Data Cores Recovered . | . . . . . Used . | . . . . . Hacking Detections 1 | . . . 1 . Full Trace Events 1 | . . . 1 . Feedback Events . | . . . . . Feedback Blocked . | . . . . . Robot Schematics Acquired . | . . . . . Robots Built . | . . . . . Authchips . | . . . . . Time . | . . . . . Total Robot Build Rating . | . . . . . Part Schematics Acquired . | . . . . . Parts Built . | . . . . . Authchips . | . . . . . Time . | . . . . . Total Part Build Rating . | . . . . . Parts Repaired . | . . . . . Time . | . . . . . Parts Recycled . | . . . . . Recycled Matter . | . . . . . Retrieved Matter . | . . . . . Retrieved Components . | . . . . . Parts Scanalyzed . | . . . . . Part Schematics Acquired . | . . . . . Parts Damaged . | . . . . . Bothacking | -11 -10 -10 -9 -9 ------------ Run | Yrd Mat Min Mat Min Used RIF Installer . | . . . . . Robots Hacked . | . . . . . Non-combat . | . . . . . Combat . | . . . . . Robot Hacks Applied . | . . . . . Relay Couplers Released . | . . . . . Fabnet Peak Effective % . | . . . . . Robots Rewired . | . . . . . Allies Hacked . | . . . . . Hacks Repelled . | . . . . . Allies | -11 -10 -10 -9 -9 -------- Run | Yrd Mat Min Mat Min Total Allies . | . . . . . Largest Group . | . . . . . Highest-Rated Group . | . . . . . Highest-Rated Ally . | . . . . . Total Orders . | . . . . . Ally Attacks . | . . . . . Total Damage . | . . . . . Kills . | . . . . . Allies Corrupted . | . . . . . Allies Melted . | . . . . . Intel | -11 -10 -10 -9 -9 ------- Run | Yrd Mat Min Mat Min Robot Analysis Total . | . . . . . Derelict Logs Recovered 1 | . . 1 . . Drone Launches . | . . . . . Drone Recoveries . | . . . . . Exploration | -11 -10 -10 -9 -9 ------------- Run | Yrd Mat Min Mat Min Turns Passed 3072 | 78 465 454 658 1417 Spaces Moved 1144 | 58 228 225 312 321 Core 9 | 9 . . . . Treads . | . . . . . Legs 1135 | 49 228 225 312 321 Wheels . | . . . . . Hover . | . . . . . Flight . | . . . . . Fastest Speed 50 | 50 120 190 190 190 Average Speed 185 | 109 188 190 190 190 Slowest Speed 190 | 120 190 190 190 190 Overloaded Moves . | . . . . . Propulsion Burnouts . | . . . . . Robots Hopped . | . . . . . Cave-ins Triggered . | . . . . . Exploration Rate (%) 27 | 3 32 34 26 44 Regions Visited 4 Branch Regions 2 Pre-discovered Areas 1 | . . 1 . . Known Exits Taken . | . . . . . Unknown Exits Taken 4 | 1 1 1 1 . Scrap Searched 2 | . . 1 . 1 Spaces Dug 24 | . . . . 24 Terrain Destroyed 48 | . . . . 48 Melee . | . . . . . Projectile . | . . . . . AOE 48 | . . . . 48 Terrain Rammed . | . . . . . Walls Destroyed . | . . . . . Machines Disabled . | . . . . . Actions | -11 -10 -10 -9 -9 --------- Run | Yrd Mat Min Mat Min Total 2038 | 72 265 249 348 1104 Wait 828 | . 24 18 17 769 Move 1140 | 57 227 224 311 321 Hop . | . . . . . Pick Up 24 | 9 8 4 3 . Fast Attach . | . . . . . Attach 9 | 6 1 . 2 . Detach . | . . . . . Swap 7 | . 2 2 . 3 Drop 3 | . 3 . . . Fire 27 | . . 1 15 11 Melee . | . . . . . Ram . | . . . . . Kick . | . . . . . Crush . | . . . . . Escape Stasis . | . . . . . Rewire . | . . . . . Trap . | . . . . . Miscellaneous . | . . . . . Route ------- -11/Scrapyard -10/Materials (discovered 2 exits: *Mat / *Min) -10/Mines -9/Materials -9/Mines History --------- Turn | Location | Event 6 | -11/Scrapyard | Discovered new exit (range 15) 79 | -11/Scrapyard | Entered Materials 302 | -10/Materials | Build established: Mutant 411 | -10/Materials | Discovered new exit (range 12) 487 | -10/Materials | Discovered new exit (range 15) 544 | -10/Materials | Entered Mines 566 | -10/Mines | Met a Derelict shopkeep closing up shop 810 | -10/Mines | Learned location of Zion (-7) 969 | -10/Mines | Discovered new exit (range 10) 970 | -10/Mines | Assembled infested the area 975 | -10/Mines | Assisted by a Guerilla fighting off Assembled 998 | -10/Mines | Entered Materials 998 | -9/Materials | Evolved 2 slots: Utility x2 1599 | -9/Materials | Discovered new exit (range 15) 1656 | -9/Materials | Entered Mines 3073 | -9/Mines | Self-destructed Last Messages --------------- 02485_ U-05 Engineer builds a Wall. 02486_ U-05 Engineer lays Concrete. 02489_ U-05 Engineer builds a Wall. 02507_ U-05 Engineer lays Concrete. 02511_ U-05 Engineer builds a Wall. 02515_ U-05 Engineer lays Concrete. 02517_ U-05 Engineer builds a Wall. 02521_ U-05 Engineer lays Concrete. 02589_ U-05 Engineer builds a Wall. 02594_ U-05 Engineer lays Concrete. 02745_ The unstable cave ceiling collapses. 02951_ U-05 Engineer builds a Wall. 02956_ U-05 Engineer lays Concrete. 02959_ U-05 Engineer builds a Wall. 02962_ U-05 Engineer lays Concrete. 02986_ U-05 Engineer builds a Wall. 02999_ U-05 Engineer lays Concrete. 03004_ U-05 Engineer builds a Wall. 03016_ U-05 Engineer lays Concrete. 03023_ U-05 Engineer builds a Wall. Map ----- +----------------------------------------------------+ | #???????????????????????????? | | #???????????????????????????? | | #???????????????????????????? | | #???????????????????????????? | | ####????????????????????????? | | ##???????????????????????? | | ##???????????#####??????? | | #######?????# ##?????? | | ####### ###???? | | """ #?# ##??? | | """ ## #### ### #??? | | """ ### #??# #??? | | ##?# #??### # #??? | | ##??# #????# ## #??? | | # #???# #????# ### ##??? | | ## #???# #????# #### #???? | | ?## ##??# ###### ## ##??? | | ??## #??# ## ### # #??? | | ???# ##?# ##*###??? | | ???## #?#### ##### ##???? | | ????## #????# ##???# #????? | | ?????# ##???# ##????# #????? | | ????## #??## /##?#???# #????? | | ???## #??# ### ## #????? | | ?### #??# # ##### ###??? | | ## #?## # # @##??? | | # ##?# # # ##??? | | ## #####??## # # ##??? | | ?####???????###### # ##??? | | ?????????????????# # ##??? | | ?????????????????### ##??? | | ?????????????????### " ##??? | | ???????????????????#########??? | | ????????????????????#####?????? | | ??????????????????????????????? | | | | | | | | | | | | | | | | | | | | | | | | | | | | | | | +----------------------------------------------------+ Best States ------------- Heat Dissipation 28 Energy Generation 10 Energy Capacity 125 Matter Stores 300 Matter Capacity 300 Sight Range 16 Terrain Scan Density 10 Armor Coverage 225 Evasion (%) 55 Targeting Accuracy 5 Item Schematics ----------------- None Robot Schematics ------------------ None Fabricated ------------ Nothing Alien Tech Used ----------------- None Achievements -------------- None Challenges ------------ None Game ------ Seed CloakingNodeTorch Manual? 0 Play Time 00:12:42 Cumulative 19.3 hours Start 2024.05.05 @ 05:51:50 End 2024.05.05 @ 06:01:41 Sessions 1 Manual Loads 0 Difficulty Rogue Special Mode None Game No. 109 Rogue 109 Adventurer 0 Explorer 0 Win Type - Total 0 Types 0/0/0/0/0/0/0/0/0 Lore% 7 Gallery% 22 Achievement% 16 Wizard Run 0 Options --------- Layout 0 ASCII 0 Keyboard 0 Movement Arrows Keybinds 0 Fullscreen 2 Font 24/Cog Map View 76x50 Zoom Use 0% Tactical HUD 1 Map Filters NONE Filters NONE Steam 1 RUN: 26a0c48e-3442-40a5-a03c-89a979132d5f